[Event "*** Titled Tuesday Blitz"]
[Site "Chess.com"]
[Date "2020.04.21"]
[Round "3"]
[White "Gahan-MG"]
[Black "ToivoK3"]
[Result "0-1"]
[WhiteElo "2588"]
[BlackElo "2896"]
[TimeControl "180+1"]
[EndTime "10:30:21 PDT"]
[Termination "ToivoK3 won by resignation"]

1. e4 {[%clk 0:03:00.9]} 1... c5 {[%clk 0:02:59.7]} 2. c3 {[%clk 0:02:57.1]}
2... g6 {[%clk 0:02:59.2]} 3. d4 {[%clk 0:02:55.2]} 3... cxd4 {[%clk 0:03:00.1]}
4. Qxd4 {[%clk 0:02:51.2]} 4... Nf6 {[%clk 0:02:59.9]} 5. Bb5 {[%clk 0:02:50.3]}
5... Nc6 {[%clk 0:02:25.8]} 6. Bxc6 {[%clk 0:02:49.9]} 6... bxc6 {[%clk
0:02:25.2]} 7. e5 {[%clk 0:02:50]} 7... Nd5 {[%clk 0:02:25.4]} 8. Ne2 {[%clk
0:02:42.6]} 8... Bg7 {[%clk 0:02:23.5]} 9. c4 {[%clk 0:02:41]} 9... Nb4 {[%clk
0:02:03]} 10. Qc3 {[%clk 0:02:31.2]} 10... c5 {[%clk 0:01:42.7]} 11. O-O {[%clk
0:02:20.2]} 11... O-O {[%clk 0:01:41.5]} 12. a3 {[%clk 0:02:15.4]} 12... Nc6
{[%clk 0:01:40.7]} 13. f4 {[%clk 0:02:15.2]} 13... d6 {[%clk 0:01:41]} 14. Rd1
{[%clk 0:02:03.8]} 14... Bg4 {[%clk 0:01:39]} 15. Qe3 {[%clk 0:01:57]} 15...
Bxe2 {[%clk 0:01:35.9]} 16. Qxe2 {[%clk 0:01:56.8]} 16... Nd4 {[%clk 0:01:36.8]}
17. Qe4 {[%clk 0:01:48.8]} 17... dxe5 {[%clk 0:01:18.2]} 18. fxe5 {[%clk
0:01:40.4]} 18... Bxe5 {[%clk 0:01:18.4]} 19. Nc3 {[%clk 0:01:27.9]} 19... Bg7
{[%clk 0:01:16.2]} 20. Bg5 {[%clk 0:01:26.1]} 20... Re8 {[%clk 0:00:56.9]} 21.
Nd5 {[%clk 0:01:13.1]} 21... f6 {[%clk 0:00:56.9]} 22. Be3 {[%clk 0:01:08]}
22... e6 {[%clk 0:00:53.4]} 23. Nc3 {[%clk 0:01:01.2]} 23... f5 {[%clk 0:00:51]}
24. Qd3 {[%clk 0:00:58.2]} 24... Qd7 {[%clk 0:00:47.7]} 25. b4 {[%clk
0:00:53.5]} 25... Rad8 {[%clk 0:00:41.4]} 26. Bg5 {[%clk 0:00:38]} 26... Rc8
{[%clk 0:00:32.3]} 27. bxc5 {[%clk 0:00:35.6]} 27... Rxc5 {[%clk 0:00:20.6]} 28.
Be3 {[%clk 0:00:35.7]} 28... e5 {[%clk 0:00:20.8]} 29. Nd5 {[%clk 0:00:35.5]}
29... Qc6 {[%clk 0:00:19.6]} 30. Bxd4 {[%clk 0:00:35.5]} 30... exd4 {[%clk
0:00:19.7]} 31. Re1 {[%clk 0:00:35.7]} 31... Kh8 {[%clk 0:00:17.7]} 32. Rab1
{[%clk 0:00:23]} 32... Qd7 {[%clk 0:00:17.7]} 33. h4 {[%clk 0:00:19.7]} 33...
Rcc8 {[%clk 0:00:15.5]} 34. h5 {[%clk 0:00:18.9]} 34... Rxe1+ {[%clk 0:00:15.5]}
35. Rxe1 {[%clk 0:00:18.5]} 35... Re8 {[%clk 0:00:16.4]} 36. Rxe8+ {[%clk
0:00:15.4]} 36... Qxe8 {[%clk 0:00:16.6]} 37. Kf1 {[%clk 0:00:14.6]} 37... Qe4
{[%clk 0:00:13.4]} 38. Nb4 {[%clk 0:00:08.2]} 38... Qh4 {[%clk 0:00:07.1]} 39.
c5 {[%clk 0:00:08.1]} 39... Qh1+ {[%clk 0:00:04.8]} 40. Kf2 {[%clk 0:00:08.5]}
40... Bf6 {[%clk 0:00:05.2]} 41. c6 {[%clk 0:00:07.1]} 41... Qh2 {[%clk
0:00:04]} 42. Kf1 {[%clk 0:00:04.1]} 42... Bh4 {[%clk 0:00:03.7]} 43. Qf3 {[%clk
0:00:03.5]} 43... Qh1+ {[%clk 0:00:02.9]} 44. Ke2 {[%clk 0:00:03.9]} 44... Qe1+
{[%clk 0:00:03.1]} 45. Kd3 {[%clk 0:00:04.4]} 45... Qc3+ {[%clk 0:00:04]} 46.
Ke2 {[%clk 0:00:04.9]} 46... Qc4+ {[%clk 0:00:04.2]} 47. Qd3 {[%clk 0:00:04.5]}
47... Qe6+ {[%clk 0:00:04.4]} 48. Kd1 {[%clk 0:00:04.2]} 48... Bf6 {[%clk
0:00:04.8]} 49. Kc2 {[%clk 0:00:04.3]} 49... Be5 {[%clk 0:00:04.7]} 50. Qb3
{[%clk 0:00:04.5]} 50... Qd6 {[%clk 0:00:04.6]} 51. Qc4 {[%clk 0:00:04.6]} 51...
Kg7 {[%clk 0:00:04.2]} 52. Nd5 {[%clk 0:00:04.5]} 52... Qe6 {[%clk 0:00:02.3]}
53. c7 {[%clk 0:00:04.3]} 53... Bxc7 {[%clk 0:00:02.6]} 54. Qxc7+ {[%clk
0:00:05]} 54... Kh6 {[%clk 0:00:03.1]} 55. Nf4 {[%clk 0:00:03.8]} 55... Qe4+
{[%clk 0:00:01.8]} 56. Kd2 {[%clk 0:00:04.1]} 56... Qe3+ {[%clk 0:00:02.4]} 57.
Kc2 {[%clk 0:00:04]} 57... Qe4+ {[%clk 0:00:02.3]} 58. Kd2 {[%clk 0:00:04.5]}
58... Qe3+ {[%clk 0:00:02.4]} 59. Kc2 {[%clk 0:00:05]} 59... Kg5 {[%clk
0:00:03.1]} 60. Nd3 {[%clk 0:00:04.5]} 60... Qe2+ {[%clk 0:00:02.7]} 61. Kc1
{[%clk 0:00:04.9]} 61... Qxd3 {[%clk 0:00:02.9]} 62. Qe7+ {[%clk 0:00:04.8]}
62... Kg4 {[%clk 0:00:02.7]} 63. Qxh7 {[%clk 0:00:04.4]} 63... Qe3+ {[%clk
0:00:03.1]} 64. Kc2 {[%clk 0:00:04.3]} 64... gxh5 {[%clk 0:00:04]} 65. Qg6+
{[%clk 0:00:04]} 65... Qg5 {[%clk 0:00:04.4]} 66. Qd6 {[%clk 0:00:03.7]} 66...
h4 {[%clk 0:00:03.8]} 67. Qxd4+ {[%clk 0:00:03.7]} 67... Qf4 {[%clk 0:00:04.3]}
68. Qd1+ {[%clk 0:00:04.2]} 68... Kg3 {[%clk 0:00:04.3]} 69. Qd3+ {[%clk
0:00:04.1]} 69... Kxg2 {[%clk 0:00:04.6]} 70. Qd5+ {[%clk 0:00:03.9]} 70... Qe4+
{[%clk 0:00:04.1]} 0-1

[Event "*** Titled Tuesday Blitz"]
[Site "Chess.com"]
[Date "2020.04.21"]
[Round "3"]
[White "S2PAc"]
[Black "vovachesss"]
[Result "1-0"]
[WhiteElo "2789"]
[BlackElo "2616"]
[TimeControl "180+1"]
[EndTime "10:30:24 PDT"]
[Termination "S2PAc won by resignation"]

1. d4 {[%clk 0:02:59.4]} 1... d6 {[%clk 0:02:57.6]} 2. g3 {[%clk 0:02:59.6]}
2... e5 {[%clk 0:02:55.5]} 3. dxe5 {[%clk 0:02:59.1]} 3... dxe5 {[%clk
0:02:55.9]} 4. Qxd8+ {[%clk 0:03:00]} 4... Kxd8 {[%clk 0:02:56.5]} 5. Bg2 {[%clk
0:03:00.9]} 5... c6 {[%clk 0:02:57]} 6. f4 {[%clk 0:03:00.5]} 6... Nd7 {[%clk
0:02:50.4]} 7. Nc3 {[%clk 0:02:59.7]} 7... Kc7 {[%clk 0:02:50.6]} 8. Nf3 {[%clk
0:02:58.5]} 8... f6 {[%clk 0:02:39.9]} 9. Bd2 {[%clk 0:02:50.3]} 9... exf4
{[%clk 0:02:27.9]} 10. gxf4 {[%clk 0:02:35.3]} 10... Nc5 {[%clk 0:02:17.8]} 11.
O-O-O {[%clk 0:02:32.5]} 11... Ne7 {[%clk 0:02:03.3]} 12. e4 {[%clk 0:02:31.1]}
12... Ng6 {[%clk 0:02:03.6]} 13. f5 {[%clk 0:01:46.2]} 13... Ne5 {[%clk
0:02:03.7]} 14. Nxe5 {[%clk 0:01:46.6]} 14... fxe5 {[%clk 0:02:03.8]} 15. Bg5
{[%clk 0:01:47]} 15... Bd6 {[%clk 0:01:47.8]} 16. Rd2 {[%clk 0:01:39]} 16... Re8
{[%clk 0:01:47.5]} 17. Rhd1 {[%clk 0:01:23.3]} 17... Be7 {[%clk 0:01:47]} 18.
Bxe7 {[%clk 0:01:23.3]} 18... Rxe7 {[%clk 0:01:47.2]} 19. Rd8 {[%clk 0:01:23.8]}
19... b6 {[%clk 0:01:29.8]} 20. Rh8 {[%clk 0:01:17.8]} 20... h6 {[%clk
0:01:26.6]} 21. Rdd8 {[%clk 0:01:17.2]} 21... Nd7 {[%clk 0:01:14.2]} 22. Rdg8
{[%clk 0:00:53.4]} 22... Nf6 {[%clk 0:00:55.1]} 23. Rd8 {[%clk 0:00:53.4]} 23...
Rb8 {[%clk 0:00:53.9]} 24. Bh3 {[%clk 0:00:40.2]} 24... Rd7 {[%clk 0:00:29.5]}
25. Rdf8 {[%clk 0:00:39.8]} 25... Re7 {[%clk 0:00:30.2]} 26. a4 {[%clk
0:00:38.9]} 26... Nd7 {[%clk 0:00:24]} 27. Rd8 {[%clk 0:00:38.9]} 27... Ba6
{[%clk 0:00:16.8]} 28. Rxb8 {[%clk 0:00:37.2]} 28... Nxb8 {[%clk 0:00:17.7]} 29.
f6 {[%clk 0:00:28.7]} 29... gxf6 {[%clk 0:00:18.6]} 30. Rxh6 {[%clk 0:00:29.2]}
30... Nd7 {[%clk 0:00:15.3]} 31. Bxd7 {[%clk 0:00:28.7]} 31... Kxd7 {[%clk
0:00:16.2]} 32. Rxf6 {[%clk 0:00:28.8]} 32... Rh7 {[%clk 0:00:16.7]} 33. b3
{[%clk 0:00:25.2]} 33... Bc8 {[%clk 0:00:10.2]} 34. Rf2 {[%clk 0:00:20.9]} 34...
Kd6 {[%clk 0:00:08.9]} 35. Kb2 {[%clk 0:00:21.1]} 35... a5 {[%clk 0:00:09]} 36.
Rf8 {[%clk 0:00:20.8]} 36... Bd7 {[%clk 0:00:07.2]} 37. Rf6+ {[%clk 0:00:20.6]}
37... Kc5 {[%clk 0:00:05.7]} 38. Rf2 {[%clk 0:00:21.5]} 38... Rh4 {[%clk
0:00:04.9]} 39. Rd2 {[%clk 0:00:21.9]} 39... Be6 {[%clk 0:00:04.4]} 40. Re2
{[%clk 0:00:20.8]} 40... Rh3 {[%clk 0:00:04.3]} 41. Rg2 {[%clk 0:00:20]} 41...
Kd4 {[%clk 0:00:03.8]} 42. Rd2+ {[%clk 0:00:20.2]} 42... Kc5 {[%clk 0:00:04.2]}
43. Nd1 {[%clk 0:00:20]} 43... Rh4 {[%clk 0:00:02.9]} 44. Nf2 {[%clk 0:00:20.2]}
44... b5 {[%clk 0:00:02.2]} 45. Nd3+ {[%clk 0:00:19.7]} 45... Kd4 {[%clk
0:00:02.1]} 46. Kc1 {[%clk 0:00:11.9]} 46... Kxe4 {[%clk 0:00:01.6]} 47. Nc5+
{[%clk 0:00:12]} 47... Kf5 {[%clk 0:00:02.5]} 48. axb5 {[%clk 0:00:08.3]} 48...
cxb5 {[%clk 0:00:02.4]} 49. Rd6 {[%clk 0:00:09.2]} 49... Bf7 {[%clk 0:00:01.7]}
50. Rb6 {[%clk 0:00:07.4]} 50... Bh5 {[%clk 0:00:02.3]} 51. Rxb5 {[%clk
0:00:07.4]} 51... Rxh2 {[%clk 0:00:03.2]} 52. Nd3 {[%clk 0:00:07.7]} 52... Re2
{[%clk 0:00:02.7]} 53. Rxa5 {[%clk 0:00:06.8]} 53... Bf3 {[%clk 0:00:03.3]} 54.
Rc5 {[%clk 0:00:05.2]} 54... Kf6 {[%clk 0:00:03.2]} 55. b4 {[%clk 0:00:04.9]}
55... e4 {[%clk 0:00:03.8]} 56. Ne5 {[%clk 0:00:04.4]} 56... Re1+ {[%clk
0:00:03.1]} 57. Kd2 {[%clk 0:00:04.3]} 57... Re2+ {[%clk 0:00:03.5]} 58. Kc1
{[%clk 0:00:04.8]} 58... Re1+ {[%clk 0:00:03.5]} 59. Kb2 {[%clk 0:00:05.3]}
59... Bh5 {[%clk 0:00:02.9]} 60. Nc4 {[%clk 0:00:05.4]} 60... Bg4 {[%clk
0:00:02.7]} 61. b5 {[%clk 0:00:03.8]} 61... e3 {[%clk 0:00:03.2]} 62. Rc6+
{[%clk 0:00:03.4]} 62... Kf5 {[%clk 0:00:03.1]} 63. Rc5+ {[%clk 0:00:03.6]}
63... Kf6 {[%clk 0:00:03.7]} 64. Re5 {[%clk 0:00:03.5]} 64... e2 {[%clk
0:00:03.3]} 65. b6 {[%clk 0:00:04]} 65... Rd1 {[%clk 0:00:03.1]} 66. b7 {[%clk
0:00:03.3]} 66... e1=Q {[%clk 0:00:01.8]} 67. Rxe1 {[%clk 0:00:03.3]} 67... Rxe1
{[%clk 0:00:02.7]} 68. b8=Q {[%clk 0:00:04.1]} 68... Be6 {[%clk 0:00:03.6]} 69.
Qd8+ {[%clk 0:00:03.6]} 69... Kf5 {[%clk 0:00:03.8]} 70. Qd2 {[%clk 0:00:04.5]}
70... Re4 {[%clk 0:00:03.3]} 71. Nd6+ {[%clk 0:00:04.4]} 71... Ke5 {[%clk
0:00:03.8]} 72. Nxe4 {[%clk 0:00:05.3]} 72... Kxe4 {[%clk 0:00:04.7]} 73. Kc3
{[%clk 0:00:06]} 1-0

[Event "*** Titled Tuesday Blitz"]
[Site "Chess.com"]
[Date "2020.04.21"]
[Round "3"]
[White "jonaszmb"]
[Black "Hippotaner"]
[Result "1-0"]
[WhiteElo "2467"]
[BlackElo "2241"]
[TimeControl "180+1"]
[EndTime "10:30:25 PDT"]
[Termination "jonaszmb won by checkmate"]

1. d4 {[%clk 0:03:00.9]} 1... Nf6 {[%clk 0:02:54.9]} 2. c4 {[%clk 0:03:01]} 2...
e6 {[%clk 0:02:54]} 3. Nf3 {[%clk 0:03:01.3]} 3... Bb4+ {[%clk 0:02:45.7]} 4.
Nbd2 {[%clk 0:03:00.4]} 4... O-O {[%clk 0:02:42.3]} 5. g3 {[%clk 0:03:00.6]}
5... b6 {[%clk 0:02:42.1]} 6. Bg2 {[%clk 0:03:00.8]} 6... Bb7 {[%clk 0:02:42.3]}
7. O-O {[%clk 0:03:00.9]} 7... a5 {[%clk 0:02:30.4]} 8. Qc2 {[%clk 0:02:59.5]}
8... Bxd2 {[%clk 0:02:23.2]} 9. Bxd2 {[%clk 0:02:56.6]} 9... d6 {[%clk
0:02:21.9]} 10. Bg5 {[%clk 0:02:49.3]} 10... h6 {[%clk 0:02:20.8]} 11. Bxf6
{[%clk 0:02:47.8]} 11... Qxf6 {[%clk 0:02:20.7]} 12. Rfd1 {[%clk 0:02:41.5]}
12... Nd7 {[%clk 0:02:19.8]} 13. d5 {[%clk 0:02:31.1]} 13... exd5 {[%clk
0:02:14.7]} 14. cxd5 {[%clk 0:02:32]} 14... Nc5 {[%clk 0:02:14.6]} 15. Nd4
{[%clk 0:02:29.1]} 15... Rfe8 {[%clk 0:02:06.5]} 16. e4 {[%clk 0:02:24.6]} 16...
Ba6 {[%clk 0:01:59.9]} 17. Rac1 {[%clk 0:02:18.2]} 17... Qe7 {[%clk 0:01:51.8]}
18. Nc6 {[%clk 0:02:08.4]} 18... Qf6 {[%clk 0:01:50.6]} 19. a3 {[%clk
0:02:03.1]} 19... a4 {[%clk 0:01:49.3]} 20. f4 {[%clk 0:01:50.9]} 20... Bb5
{[%clk 0:01:49]} 21. Nd4 {[%clk 0:01:47.5]} 21... Ba6 {[%clk 0:01:46]} 22. Nc6
{[%clk 0:01:35.5]} 22... Bb5 {[%clk 0:01:39.1]} 23. e5 {[%clk 0:01:35.3]} 23...
dxe5 {[%clk 0:01:38.5]} 24. fxe5 {[%clk 0:01:36.2]} 24... Qg5 {[%clk 0:01:38.8]}
25. Nd4 {[%clk 0:01:27.8]} 25... Qe3+ {[%clk 0:01:37.7]} 26. Qf2 {[%clk
0:00:54.6]} 26... Qxf2+ {[%clk 0:01:28.4]} 27. Kxf2 {[%clk 0:00:55.5]} 27... Ba6
{[%clk 0:01:25.4]} 28. d6 {[%clk 0:00:43.1]} 28... Rad8 {[%clk 0:01:00.6]} 29.
dxc7 {[%clk 0:00:41.7]} 29... Rc8 {[%clk 0:00:59.3]} 30. Kg1 {[%clk 0:00:24.6]}
30... Rxc7 {[%clk 0:00:50.2]} 31. Nf3 {[%clk 0:00:23.9]} 31... Rce7 {[%clk
0:00:48.1]} 32. Rd6 {[%clk 0:00:22.1]} 32... Nd3 {[%clk 0:00:47.6]} 33. Rb1
{[%clk 0:00:11.3]} 33... Rb8 {[%clk 0:00:36.8]} 34. b3 {[%clk 0:00:09.9]} 34...
Bb7 {[%clk 0:00:25.5]} 35. bxa4 {[%clk 0:00:08.8]} 35... Bxf3 {[%clk 0:00:25.5]}
36. Bxf3 {[%clk 0:00:08.1]} 36... Nxe5 {[%clk 0:00:26.4]} 37. Bg2 {[%clk
0:00:07.5]} 37... Nc4 {[%clk 0:00:26.2]} 38. Rc6 {[%clk 0:00:07.8]} 38... Nxa3
{[%clk 0:00:15.9]} 39. Rcxb6 {[%clk 0:00:08.2]} 39... Rxb6 {[%clk 0:00:15.2]}
40. Rxb6 {[%clk 0:00:09.1]} 40... Nc4 {[%clk 0:00:15.1]} 41. Rb8+ {[%clk
0:00:09.1]} 41... Kh7 {[%clk 0:00:15]} 42. Rb4 {[%clk 0:00:09.8]} 42... Nd6
{[%clk 0:00:14.6]} 43. Kf2 {[%clk 0:00:09.6]} 43... Ra7 {[%clk 0:00:14.1]} 44.
Rd4 {[%clk 0:00:09.1]} 44... Nc8 {[%clk 0:00:12.7]} 45. Bd5 {[%clk 0:00:09.1]}
45... Nb6 {[%clk 0:00:12.7]} 46. Be4+ {[%clk 0:00:09]} 46... g6 {[%clk
0:00:11.8]} 47. Bc6 {[%clk 0:00:09.9]} 47... Kg7 {[%clk 0:00:11.3]} 48. Bb5
{[%clk 0:00:10.1]} 48... Nc8 {[%clk 0:00:09.4]} 49. Ke3 {[%clk 0:00:10.1]} 49...
Kf6 {[%clk 0:00:09.4]} 50. Kd3 {[%clk 0:00:10.1]} 50... Ke5 {[%clk 0:00:09.7]}
51. Re4+ {[%clk 0:00:10.5]} 51... Kd5 {[%clk 0:00:09.6]} 52. Rh4 {[%clk
0:00:10.6]} 52... h5 {[%clk 0:00:09.4]} 53. Kc3 {[%clk 0:00:11.1]} 53... Nd6
{[%clk 0:00:09.7]} 54. Rd4+ {[%clk 0:00:10.9]} 54... Ke6 {[%clk 0:00:10.1]} 55.
Kb4 {[%clk 0:00:10.4]} 55... g5 {[%clk 0:00:07.9]} 56. Kc5 {[%clk 0:00:08.9]}
56... Nb7+ {[%clk 0:00:06.9]} 57. Kb6 {[%clk 0:00:08.8]} 57... Ra8 {[%clk
0:00:07]} 58. Kxb7 {[%clk 0:00:09.2]} 58... Rf8 {[%clk 0:00:06.6]} 59. Re4+
{[%clk 0:00:09.2]} 59... Kd5 {[%clk 0:00:06.4]} 60. Re1 {[%clk 0:00:09.3]} 60...
f5 {[%clk 0:00:06.8]} 61. a5 {[%clk 0:00:09.8]} 61... Kc5 {[%clk 0:00:06.8]} 62.
Bd7 {[%clk 0:00:08.5]} 62... Rf7 {[%clk 0:00:07.1]} 63. Kc7 {[%clk 0:00:08.4]}
63... f4 {[%clk 0:00:07.1]} 64. gxf4 {[%clk 0:00:08.4]} 64... gxf4 {[%clk
0:00:08]} 65. a6 {[%clk 0:00:08.8]} 65... f3 {[%clk 0:00:07.1]} 66. a7 {[%clk
0:00:09.3]} 66... f2 {[%clk 0:00:08]} 67. Rf1 {[%clk 0:00:09.8]} 67... Rf3
{[%clk 0:00:06.5]} 68. a8=Q {[%clk 0:00:08.7]} 68... Rc3 {[%clk 0:00:07.4]} 69.
Qc6+ {[%clk 0:00:08.8]} 69... Kb4 {[%clk 0:00:08.3]} 70. Qxc3+ {[%clk
0:00:08.8]} 70... Kxc3 {[%clk 0:00:09]} 71. Rxf2 {[%clk 0:00:09.7]} 71... Kd4
{[%clk 0:00:09.4]} 72. Rf3 {[%clk 0:00:10.2]} 72... h4 {[%clk 0:00:10.1]} 73.
Rh3 {[%clk 0:00:11.1]} 73... Ke4 {[%clk 0:00:10.5]} 74. Rxh4+ {[%clk 0:00:12]}
74... Ke5 {[%clk 0:00:11]} 75. Rg4 {[%clk 0:00:12.2]} 75... Kf6 {[%clk
0:00:11.9]} 76. h4 {[%clk 0:00:12.8]} 76... Kf7 {[%clk 0:00:11.6]} 77. h5 {[%clk
0:00:13.7]} 77... Kf6 {[%clk 0:00:12.5]} 78. h6 {[%clk 0:00:14.6]} 78... Kf7
{[%clk 0:00:13.4]} 79. h7 {[%clk 0:00:15.5]} 79... Kf6 {[%clk 0:00:14.3]} 80.
h8=Q+ {[%clk 0:00:15.2]} 80... Kf7 {[%clk 0:00:15.2]} 81. Qg7# {[%clk
0:00:15.2]} 1-0

[Event "*** Titled Tuesday Blitz"]
[Site "Chess.com"]
[Date "2020.04.21"]
[Round "3"]
[White "Macron20hTF1"]
[Black "Twitch_ElhamBlitz05"]
[Result "1-0"]
[WhiteElo "2417"]
[BlackElo "2594"]
[TimeControl "180+1"]
[EndTime "10:30:32 PDT"]
[Termination "Macron20hTF1 won by checkmate"]

1. d4 {[%clk 0:03:00.9]} 1... c6 {[%clk 0:02:59.8]} 2. c4 {[%clk 0:02:59.9]}
2... d5 {[%clk 0:03:00.7]} 3. Nf3 {[%clk 0:03:00.4]} 3... Nf6 {[%clk 0:03:01.1]}
4. Nc3 {[%clk 0:03:00.9]} 4... g6 {[%clk 0:03:01.8]} 5. e3 {[%clk 0:02:58.9]}
5... Bg7 {[%clk 0:03:02.5]} 6. Be2 {[%clk 0:02:59]} 6... O-O {[%clk 0:03:03.4]}
7. O-O {[%clk 0:02:59.6]} 7... Nbd7 {[%clk 0:03:02.5]} 8. b3 {[%clk 0:02:58.6]}
8... Ne4 {[%clk 0:02:59.4]} 9. Bb2 {[%clk 0:02:55.1]} 9... Nxc3 {[%clk 0:02:58]}
10. Bxc3 {[%clk 0:02:56]} 10... e6 {[%clk 0:02:58.9]} 11. a4 {[%clk 0:02:52.9]}
11... b6 {[%clk 0:02:58.4]} 12. a5 {[%clk 0:02:50.6]} 12... Rb8 {[%clk
0:02:47.8]} 13. Qc2 {[%clk 0:02:46.3]} 13... Re8 {[%clk 0:02:39.3]} 14. axb6
{[%clk 0:02:37]} 14... axb6 {[%clk 0:02:39]} 15. Qb2 {[%clk 0:02:37.2]} 15... b5
{[%clk 0:02:32.2]} 16. cxb5 {[%clk 0:02:35.5]} 16... cxb5 {[%clk 0:02:32.3]} 17.
Bb4 {[%clk 0:02:33]} 17... e5 {[%clk 0:02:14.8]} 18. Bd6 {[%clk 0:02:33]} 18...
exd4 {[%clk 0:02:15.2]} 19. Nxd4 {[%clk 0:02:30.6]} 19... Rb6 {[%clk 0:02:06.8]}
20. Bb4 {[%clk 0:02:25]} 20... Qh4 {[%clk 0:01:51.3]} 21. Rfd1 {[%clk
0:02:17.4]} 21... Ne5 {[%clk 0:01:46.9]} 22. Ra8 {[%clk 0:02:04.5]} 22... Bd7
{[%clk 0:01:35.3]} 23. Rxe8+ {[%clk 0:02:03.3]} 23... Bxe8 {[%clk 0:01:36.2]}
24. Qa3 {[%clk 0:01:55.4]} 24... Nc6 {[%clk 0:00:46.4]} 25. Bc5 {[%clk
0:01:52.9]} 25... Nxd4 {[%clk 0:00:46.2]} 26. Bxd4 {[%clk 0:01:51.6]} 26... Bxd4
{[%clk 0:00:35.3]} 27. Rxd4 {[%clk 0:01:52.5]} 27... Qd8 {[%clk 0:00:32.1]} 28.
g3 {[%clk 0:01:42.2]} 28... Kg7 {[%clk 0:00:28.7]} 29. Bf3 {[%clk 0:01:39.5]}
29... Rd6 {[%clk 0:00:26.5]} 30. Qc5 {[%clk 0:01:37.7]} 30... Bc6 {[%clk
0:00:27.3]} 31. e4 {[%clk 0:01:34.8]} 31... Qf6 {[%clk 0:00:22.7]} 32. exd5
{[%clk 0:01:12.5]} 32... Bd7 {[%clk 0:00:17.4]} 33. Rf4 {[%clk 0:01:03.6]} 33...
Qa1+ {[%clk 0:00:09]} 34. Kg2 {[%clk 0:01:04]} 34... Qe5 {[%clk 0:00:08.8]} 35.
b4 {[%clk 0:00:56.6]} 35... h5 {[%clk 0:00:08.6]} 36. h4 {[%clk 0:00:56.3]}
36... Bf5 {[%clk 0:00:04.6]} 37. Qxb5 {[%clk 0:00:41.8]} 37... Qe1 {[%clk
0:00:04.2]} 38. Qc5 {[%clk 0:00:35.4]} 38... Ra6 {[%clk 0:00:04.5]} 39. Qd4+
{[%clk 0:00:20.6]} 39... Kg8 {[%clk 0:00:05.4]} 40. Qd1 {[%clk 0:00:05.9]} 40...
Qe5 {[%clk 0:00:04]} 41. Rd4 {[%clk 0:00:05.1]} 41... Rd6 {[%clk 0:00:03.4]} 42.
b5 {[%clk 0:00:05]} 42... Bd7 {[%clk 0:00:02]} 43. Qd3 {[%clk 0:00:04.3]} 43...
Qf6 {[%clk 0:00:02.2]} 44. Rf4 {[%clk 0:00:02.9]} 44... Qe5 {[%clk 0:00:02.7]}
45. Qd4 {[%clk 0:00:03.4]} 45... Qe1 {[%clk 0:00:02.7]} 46. b6 {[%clk
0:00:03.8]} 46... Qb1 {[%clk 0:00:02.4]} 47. Rf6 {[%clk 0:00:03.9]} 47... Rxf6
{[%clk 0:00:01.7]} 48. Qxf6 {[%clk 0:00:04.8]} 48... Bf5 {[%clk 0:00:01.7]} 49.
Qd4 {[%clk 0:00:04.6]} 49... Bd7 {[%clk 0:00:01.8]} 50. d6 {[%clk 0:00:04.9]}
50... Qf5 {[%clk 0:00:02.2]} 51. Qe3 {[%clk 0:00:04.7]} 51... Qh3+ {[%clk
0:00:02.4]} 52. Kg1 {[%clk 0:00:05.2]} 52... Qf5 {[%clk 0:00:02.9]} 53. b7
{[%clk 0:00:05.5]} 53... Qb1+ {[%clk 0:00:03.1]} 54. Kg2 {[%clk 0:00:05.6]}
54... Kh7 {[%clk 0:00:02.1]} 55. Qe7 {[%clk 0:00:05.5]} 55... Be6 {[%clk
0:00:02.7]} 56. d7 {[%clk 0:00:04]} 56... Qf5 {[%clk 0:00:02.1]} 57. d8=Q {[%clk
0:00:04]} 57... Qh3+ {[%clk 0:00:02.1]} 58. Kg1 {[%clk 0:00:04.6]} 58... Bc4
{[%clk 0:00:03]} 59. Qd1 {[%clk 0:00:03.4]} 59... Qf5 {[%clk 0:00:02.2]} 60. Bg2
{[%clk 0:00:03.6]} 60... Qb5 {[%clk 0:00:01.6]} 61. Qe3 {[%clk 0:00:03.6]} 61...
Be6 {[%clk 0:00:01.7]} 62. Qdd2 {[%clk 0:00:04]} 62... Qb1+ {[%clk 0:00:01.8]}
63. Kh2 {[%clk 0:00:04.1]} 63... Qb5 {[%clk 0:00:02.6]} 64. Qh6+ {[%clk
0:00:04.6]} 64... Kg8 {[%clk 0:00:02.4]} 65. Qd8+ {[%clk 0:00:05.4]} 65... Qe8
{[%clk 0:00:02.6]} 66. Qxe8# {[%clk 0:00:06.3]} 1-0